fUSD/lending_fUSD_20250811
["ID","MTS","AMOUNT","RATE_DAILY","PERIOD"]
[378460475,1754873448960,-2020.19,0.00018998,2]
[378460476,1754873448970,-5067.34,0.00018998,2]
[378460477,1754873448980,-500.0,0.00018998,2]
[378460478,1754873448990,-500.0,0.00018998,2]
[378460479,1754873449000,-1670.71,0.00018998,2]
[378460480,1754873449011,-400.0,0.00018998,2]
[378460481,1754873449020,-1978.75,0.00018998,2]
[378460482,1754873449035,-2214.23,0.00018998,2]
[378460483,1754873449045,-10584.5,0.00018999,2]
[378460484,1754873449055,-1627.91073778,0.00018999,5]
[378460485,1754873449065,-1000.0,0.00018999,2]
[378460486,1754873449076,-1000.0,0.00018999,2]
[378460487,1754873449085,-1000.0,0.00018999,2]
[378460488,1754873449095,-29832.90691718,0.00018999,2]
[378460489,1754873449105,-116552.16370611,0.00018999,7]
[378460490,1754873449114,-500.0,0.00018999,2]
[378460491,1754873449123,-576.13534827,0.00018999,2]
[378460492,1754873449133,-1000.0,0.00018999,2]
[378460493,1754873449143,-672.72413538,0.00018999,2]
[378460494,1754873449152,-211.70500488,0.00018999,7]
[378460495,1754873449164,-500.0,0.00018999,2]
[378460496,1754873449173,-500.0,0.00018999,2]
[378460497,1754873449183,-500.0,0.00018999,2]
[378460498,1754873449193,-500.0,0.00018999,2]
[378460499,1754873449202,-500.0,0.00018999,2]
[378460500,1754873449212,-500.0,0.00018999,2]
[378460501,1754873449221,-500.0,0.00018999,2]
[378460502,1754873449230,-500.0,0.00018999,2]
[378460503,1754873449240,-500.0,0.00018999,2]
[378460504,1754873449249,-500.0,0.00018999,2]
[378460505,1754873449259,-477.47,0.00018999,2]
[378460506,1754873449268,-457.79793389,0.00018999,7]
[378460507,1754873449277,-150.0,0.00018999,2]
[378460508,1754873449289,-197.68222047,0.00018999,2]
[378460509,1754873449300,-587.86,0.00018999,2]
[378460510,1754873449310,-1416.09,0.00018999,2]
[378460511,1754873449319,-500.0,0.00018999,2]
[378460512,1754873449329,-220.44004126,0.00018999,2]
[378460513,1754873449340,-335.5187496,0.00018999,2]
[378460514,1754873449349,-500.0,0.00018999,2]
[378460515,1754873449359,-257.97156173,0.00018999,2]
[378460516,1754873449369,-500.0,0.00018999,2]
[378460517,1754873449378,-500.0,0.00018999,2]
[378460518,1754873449388,-253.4163836,0.00018999,2]
[378460519,1754873449397,-666.0,0.00018999,2]
[378460520,1754873449406,-300.0,0.00018999,2]
[378460521,1754873449415,-300.0,0.00018999,2]
[378460522,1754873449424,-300.0,0.00018999,2]
[378460523,1754873449434,-605.64196984,0.00018999,2]
[378460524,1754873449444,-1481601.19466437,0.00019,2]
[378460525,1754873449454,-40713.80250732,0.00019,2]
[378460526,1754873449464,-316.07098645,0.00019,2]
[378460527,1754873449474,-1216.0,0.00019,2]
[378460528,1754873449484,-5000.0,0.00019,4]
[378460529,1754873449494,-1143897.17980343,0.00019,2]
[378460530,1754873449503,-2122.84699537,0.00019,2]
[378460531,1754873449513,-42128.0,0.00019,2]
[378460532,1754873449522,-1811313.02300939,0.00019,2]
[378460533,1754873450463,-10664.18007678,0.00019,2]
[378460534,1754873450474,-886.1,0.00019,2]
[378460535,1754873451122,-400.0,0.00018859,2]
[378460536,1754873451132,-1064.07763146,0.00018869,2]
[378460537,1754873451142,-3340.16290718,0.00019,2]
[378460538,1754873452020,-400.0,0.00018859,2]
[378460539,1754873452030,-79.24787632,0.0001886,2]
[378460540,1754873452058,-320.75212368,0.0001886,2]
[378460541,1754873452067,-79.24787632,0.00019,2]
[378460542,1754873452179,-912.6499995,0.00019,2]
[378460543,1754873452191,-4278.1,0.00019,2]
[378460544,1754873452203,-5686.89487166,0.00019,2]
[378460545,1754873452215,-116493.62830885,0.00019,2]
[378460548,1754873507616,516.0,0.0003013,120]
[378460551,1754873553623,244.61,0.00013699,2]
[378460557,1754873597582,1842.79068195,0.00030136,120]
[378460561,1754873726961,173.56,0.00017976,2]
[378460566,1754873914500,250.0,0.00015,2]
[378460567,1754873915626,300.0,0.00017,2]
[378460570,1754874089590,180.108,0.00017806,2]
[378460571,1754874095361,4438.134,0.00017806,2]
[378460573,1754874187396,440.68,0.00017782,2]
[378460574,1754874195100,486.015453,0.00017986,2]
[378460577,1754874275567,-192.62003563,0.00018077,2]
[378460578,1754874275590,-1200.0,0.00018168,2]
[378460579,1754874275615,-318.0,0.00018359,7]
[378460580,1754874275637,-300.0,0.00018362,2]
[378460581,1754874275660,-1701.51525234,0.00018404,2]
[378460582,1754874275683,-231.28369723,0.00018489,2]
[378460583,1754874275706,-300.0,0.00018499,2]
[378460584,1754874275729,-1200.0,0.00018499,2]
[378460585,1754874275752,-300.0,0.00018499,2]
[378460586,1754874275775,-996.5810148,0.000185,2]
[378460587,1754874287119,500.0,0.0001784,3]
[378460589,1754874380703,1000.0,0.00017855,2]
[378460592,1754874405697,507.0,0.00017738,2]
[378460593,1754874413003,213.47,0.00017852,2]
[378460594,1754874413250,213.47,0.00026777,120]
[378460614,1754874603776,1000.0,0.0003,120]
[378460617,1754874632021,-1200.0,0.00018488,2]
[378460618,1754874632031,-500.0,0.00018489,2]
[378460619,1754874632041,-346.92554585,0.00018489,2]
[378460620,1754874632052,-160.0,0.00018489,2]
[378460621,1754874632066,-600.0,0.00018489,2]
[378460622,1754874632078,-231.28369723,0.00018489,2]
[378460623,1754874632090,-1438.09495884,0.00018489,2]
[378460624,1754874632102,-167.24928572,0.00018489,2]
[378460625,1754874632113,-250.0,0.000185,2]
[378460626,1754874632123,-11955.25608872,0.000185,2]
[378460627,1754874632141,-12107.866,0.000185,2]
[378460630,1754874632281,-23693.29689648,0.000185,2]
[378460631,1754874632292,-178.0,0.00018504,2]
[378460632,1754874632303,-500.0,0.00018505,2]
[378460633,1754874632315,-500.0,0.00018544,2]
[378460634,1754874632324,-841.55003499,0.00018759,2]
[378460635,1754874632333,-161.29829463,0.00018759,2]
[378460636,1754874632343,-178.55467357,0.00018759,2]
[378460637,1754874632353,-537.81374655,0.00018759,2]
[378460638,1754874632363,-212.81552631,0.00018759,2]
[378460639,1754874632373,-841.55003492,0.00018775,2]
[378460640,1754874632382,-561.45,0.00018775,2]
[378460641,1754874632392,-302.18,0.00018775,2]
[378460642,1754874632401,-9999.99,0.00018775,2]
[378460643,1754874632410,-854.16,0.00018775,2]
[378460644,1754874632420,-8178.01,0.00018775,2]
[378460645,1754874632429,-2899.48,0.00018775,2]
[378460646,1754874632438,-3414.81,0.00018775,2]
[378460647,1754874632448,-150.99,0.00018775,2]
[378460648,1754874632457,-999.99,0.00018775,2]
[378460649,1754874632466,-150.99,0.00018775,2]
[378460650,1754874632476,-6553.72,0.00018775,2]
[378460651,1754874632485,-212.81552629,0.00018775,2]
[378460652,1754874632494,-841.55003492,0.0001879,2]
[378460653,1754874632504,-212.81552629,0.0001879,2]
[378460654,1754874632513,-42128.0,0.000188,2]
[378460655,1754874632522,-841.55003492,0.00018806,2]
[378460656,1754874632532,-212.81552629,0.00018806,2]
[378460657,1754874632541,-320.95337,0.0001881,2]
[378460658,1754874632551,-1000.0,0.0001881,2]
[378460659,1754874632560,-168.0,0.00018819,2]
[378460660,1754874632570,-841.55003492,0.00018822,2]
[378460661,1754874632579,-212.81552629,0.00018822,2]
[378460662,1754874632588,-152.96830423,0.00018824,2]
[378460663,1754874632598,-841.55003492,0.00018837,2]
[378460664,1754874632608,-212.81552629,0.00018837,2]
[378460665,1754874632621,-282.83,0.00018853,2]
[378460666,1754874632630,-841.55003492,0.00018853,2]
[378460667,1754874632640,-212.81552629,0.00018853,2]
[378460668,1754874632649,-1275.46,0.00018858,2]
[378460669,1754874632660,-1461.7,0.00018858,2]
[378460670,1754874632670,-1017.52,0.00018858,2]
[378460671,1754874632679,-400.0,0.00018858,2]
[378460672,1754874632689,-487.81,0.00018858,2]
[378460673,1754874632698,-885.06,0.00018858,2]
[378460674,1754874632715,-1025.37,0.00018858,2]
[378460675,1754874632724,-854.41,0.00018858,2]
[378460676,1754874632734,-1133.55,0.00018858,2]
[378460677,1754874632743,-738.94,0.00018858,2]
[378460678,1754874632753,-818.89,0.00018858,2]
[378460679,1754874632764,-1184.56,0.00018858,2]
[378460680,1754874632773,-1932.35,0.00018858,2]
[378460681,1754874632783,-795.01,0.00018858,2]
[378460682,1754874632793,-1529.0,0.00018858,2]
[378460683,1754874632803,-1396.51,0.00018858,2]
[378460684,1754874632814,-1332.58,0.00018858,2]
[378460685,1754874632823,-353.5929,0.00018858,2]
[378460686,1754874632834,-610.572815,0.00018858,2]
[378460687,1754874632843,-779.01,0.00018858,2]
[378460688,1754874632853,-1041.61,0.00018858,2]
[378460689,1754874632862,-679.07,0.00018858,2]
[378460690,1754874632874,-605.3,0.00018858,2]
[378460691,1754874632883,-400.0,0.00018858,2]
[378460692,1754874632893,-594.966779,0.00018858,2]
[378460693,1754874632902,-888.99,0.00018858,2]
[378460694,1754874632912,-1069.54,0.00018858,2]
[378460695,1754874632921,-1337.22,0.00018858,2]
[378460696,1754874632931,-4860.96,0.00018858,2]
[378460697,1754874632941,-150.844158,0.00018858,2]
[378460698,1754874632950,-618.68,0.00018858,2]
[378460699,1754874632959,-1409.98,0.00018858,2]
[378460700,1754874632968,-2074.1,0.00018858,2]
[378460701,1754874632977,-2114.48,0.00018858,2]
[378460702,1754874632987,-439.32,0.00018858,2]
[378460703,1754874632996,-620.01,0.00018858,2]
[378460704,1754874633006,-4128.82,0.00018858,2]
[378460705,1754874633016,-2327.84,0.00018858,2]
[378460706,1754874633025,-842.66,0.00018858,2]
[378460707,1754874633034,-1821.99,0.00018858,2]
[378460708,1754874633044,-469.95188674,0.00018858,2]
[378460709,1754874633053,-400.0,0.00018858,2]
[378460710,1754874633063,-878.05,0.00018858,2]
[378460711,1754874633073,-1614.36,0.00018858,2]
[378460712,1754874633082,-500.0,0.00018858,2]
[378460713,1754874633092,-400.0,0.00018858,2]
[378460714,1754874633101,-1188.91,0.00018858,2]
[378460715,1754874633110,-400.0,0.00018858,2]
[378460716,1754874633120,-400.0,0.00018859,2]
[378460717,1754874633130,-400.0,0.00018859,2]
[378460718,1754874633139,-400.0,0.00018859,2]
[378460719,1754874633148,-400.0,0.00018859,2]
[378460720,1754874633158,-400.0,0.00018859,2]
[378460721,1754874633167,-400.0,0.00018859,2]
[378460722,1754874633176,-388.59702483,0.00018859,2]
[378460723,1754874633186,-496.27,0.00018859,2]
[378460724,1754874633195,-495.81,0.00018859,2]
[378460725,1754874633206,-400.0,0.00018859,2]
[378460726,1754874633216,-400.0,0.00018859,2]
[378460727,1754874633225,-400.0,0.00018859,2]
[378460728,1754874633235,-400.0,0.00018859,2]
[378460729,1754874633245,-546.73,0.00018859,2]
[378460730,1754874633255,-455.09,0.00018859,2]
[378460731,1754874633265,-400.0,0.00018859,2]
[378460732,1754874633274,-400.0,0.00018859,2]
[378460733,1754874633284,-502.58,0.00018859,2]
[378460734,1754874633294,-284.04371513,0.00018859,2]
[378460735,1754874633304,-400.0,0.00018859,2]
[378460736,1754874633314,-400.0,0.00018859,2]
[378460737,1754874633324,-428.53,0.00018859,2]
[378460738,1754874633334,-400.0,0.00018859,2]
[378460739,1754874633344,-432.79,0.00018859,2]
[378460740,1754874633354,-439.88,0.00018859,2]
[378460741,1754874633363,-400.0,0.00018859,2]
[378460742,1754874633373,-824.74,0.00018859,2]
[378460743,1754874633383,-400.0,0.00018859,2]
[378460744,1754874633393,-400.0,0.00018859,2]
[378460745,1754874633403,-400.0,0.00018859,2]
[378460746,1754874633412,-400.0,0.00018859,2]
[378460747,1754874633423,-400.0,0.00018859,2]
[378460748,1754874633433,-400.0,0.00018859,2]
[378460749,1754874633442,-400.0,0.00018859,2]
[378460750,1754874633452,-400.0,0.00018859,2]
[378460751,1754874633462,-400.0,0.00018859,2]
[378460752,1754874633472,-400.0,0.00018859,2]
[378460753,1754874633481,-729.97,0.00018859,2]
[378460754,1754874633491,-400.0,0.00018859,2]
[378460755,1754874633501,-400.0,0.00018859,2]
[378460756,1754874633510,-400.0,0.00018859,2]
[378460757,1754874633519,-400.0,0.00018859,2]
[378460758,1754874633529,-400.0,0.00018859,2]
[378460759,1754874633539,-464.24,0.00018859,2]
[378460760,1754874633550,-400.0,0.00018859,2]
[378460761,1754874633560,-422.31,0.00018859,2]
[378460762,1754874633569,-400.0,0.00018859,2]
[378460763,1754874633579,-400.0,0.00018859,2]
[378460764,1754874633588,-400.0,0.00018859,2]
[378460765,1754874633598,-400.0,0.00018859,2]
[378460766,1754874633607,-400.0,0.00018859,2]
[378460767,1754874633622,-400.0,0.00018859,2]
[378460768,1754874633631,-400.0,0.00018859,2]
[378460769,1754874633640,-1037.55,0.00018859,2]
[378460770,1754874633650,-400.0,0.00018859,2]
[378460771,1754874633660,-400.0,0.00018859,2]
[378460772,1754874633670,-400.0,0.00018859,2]
[378460773,1754874633680,-400.0,0.00018859,2]
[378460774,1754874633689,-400.0,0.00018859,2]
[378460775,1754874633701,-1163.65,0.00018859,2]
[378460776,1754874633712,-400.0,0.00018859,2]
[378460777,1754874633721,-461.43,0.00018859,2]
[378460778,1754874633731,-400.0,0.00018859,2]
[378460779,1754874633741,-400.0,0.00018859,2]
[378460780,1754874633751,-400.0,0.00018859,2]
[378460781,1754874633763,-400.0,0.00018859,2]
[378460782,1754874633778,-400.0,0.00018859,2]
[378460783,1754874633788,-400.0,0.00018859,2]
[378460784,1754874633798,-400.0,0.00018859,2]
[378460785,1754874633808,-400.0,0.00018859,2]
[378460786,1754874633818,-400.0,0.00018859,2]
[378460787,1754874633827,-819.55,0.00018859,2]
[378460788,1754874633837,-400.0,0.00018859,2]
[378460789,1754874633846,-400.0,0.00018859,2]
[378460790,1754874633856,-400.0,0.00018859,2]
[378460791,1754874633866,-880.71,0.00018859,2]
[378460792,1754874633875,-448.07,0.00018859,2]
[378460793,1754874633885,-400.0,0.00018859,2]
[378460794,1754874633894,-400.0,0.00018859,2]
[378460795,1754874633903,-400.0,0.00018859,2]
[378460796,1754874633914,-400.0,0.00018859,2]
[378460797,1754874633923,-406.4,0.00018859,2]
[378460798,1754874633932,-400.0,0.00018859,2]
[378460799,1754874633942,-489.73,0.00018859,2]
[378460800,1754874633952,-400.0,0.00018859,2]
[378460801,1754874633962,-400.0,0.00018859,2]
[378460802,1754874633971,-400.0,0.00018859,2]
[378460803,1754874633980,-1000.0,0.00018859,2]
[378460804,1754874633990,-400.0,0.00018859,2]
[378460805,1754874633999,-423.38,0.00018859,2]
[378460806,1754874634009,-454.145,0.00018859,2]
[378460807,1754874634018,-400.0,0.00018859,2]
[378460808,1754874634028,-400.0,0.00018859,2]
[378460809,1754874634037,-632.03,0.00018859,2]
[378460810,1754874634047,-400.0,0.00018859,2]
[378460811,1754874634057,-1061.51,0.00018859,2]
[378460812,1754874634066,-400.0,0.00018859,2]
[378460813,1754874634076,-400.0,0.00018859,2]
[378460814,1754874634086,-461.88,0.00018859,2]
[378460815,1754874634095,-400.0,0.00018859,2]
[378460816,1754874634104,-2000.36,0.00018859,2]
[378460817,1754874634113,-400.0,0.00018859,2]
[378460818,1754874634123,-736.36,0.00018859,2]
[378460819,1754874634133,-400.0,0.00018859,2]
[378460820,1754874634142,-308.47339756,0.00018859,2]
[378460821,1754874634151,-400.0,0.00018859,2]
[378460822,1754874634161,-400.0,0.00018859,2]
[378460823,1754874634171,-400.0,0.00018859,2]
[378460824,1754874634180,-400.0,0.00018859,2]
[378460825,1754874634191,-400.0,0.00018859,2]
[378460826,1754874634201,-400.0,0.00018859,2]
[378460827,1754874634211,-542.72,0.00018859,2]
[378460828,1754874634220,-400.0,0.00018859,2]
[378460829,1754874634230,-400.0,0.00018859,2]
[378460830,1754874634241,-400.0,0.00018859,2]
[378460831,1754874634250,-400.0,0.00018859,2]
[378460832,1754874634259,-484.09,0.00018859,2]
[378460833,1754874634268,-418.67,0.00018859,2]
[378460834,1754874634277,-400.0,0.00018859,2]
[378460835,1754874634288,-400.0,0.00018859,2]
[378460836,1754874634297,-822.9,0.00018859,2]
[378460837,1754874634307,-400.0,0.00018859,2]
[378460838,1754874634316,-600.87,0.00018859,2]
[378460839,1754874634326,-510.13,0.00018859,2]
[378460840,1754874634336,-875.77,0.00018859,2]
[378460841,1754874634346,-400.0,0.00018859,2]
[378460842,1754874634355,-440.01,0.00018859,2]
[378460843,1754874634364,-400.0,0.00018859,2]
[378460844,1754874634374,-781.49,0.00018859,2]
[378460845,1754874634383,-400.0,0.00018859,2]
[378460846,1754874634397,-554.23,0.00018859,2]
[378460847,1754874634406,-696.29,0.00018859,2]
[378460848,1754874634416,-400.0,0.00018859,2]
[378460849,1754874634425,-1044.91,0.00018859,2]
[378460850,1754874634434,-400.0,0.00018859,2]
[378460851,1754874634444,-451.3,0.00018859,2]
[378460852,1754874634454,-400.0,0.00018859,2]
[378460853,1754874634463,-480.41,0.00018859,2]
[378460854,1754874634473,-400.0,0.00018859,2]
[378460855,1754874634483,-400.0,0.00018859,2]
[378460856,1754874634492,-400.0,0.00018859,2]
[378460857,1754874634502,-400.0,0.00018859,2]
[378460858,1754874634511,-400.0,0.00018859,2]
[378460859,1754874634520,-400.0,0.00018859,2]
[378460860,1754874634530,-400.0,0.00018859,2]
[378460861,1754874634539,-400.0,0.00018859,2]
[378460862,1754874634549,-738.77,0.00018859,2]
[378460863,1754874634559,-404.29,0.00018859,2]
[378460864,1754874634568,-467.97,0.00018859,2]
[378460865,1754874634578,-709.69,0.00018859,2]
[378460866,1754874634587,-400.0,0.00018859,2]
[378460867,1754874634597,-440.49,0.00018859,2]
[378460868,1754874634606,-536.21,0.00018859,2]
[378460869,1754874634618,-400.0,0.00018859,2]
[378460870,1754874634628,-400.0,0.00018859,2]
[378460871,1754874634638,-1190.16,0.00018859,2]
[378460872,1754874634647,-819.81,0.00018859,2]
[378460873,1754874634657,-543.87,0.00018859,2]
[378460874,1754874634669,-400.0,0.00018859,2]
[378460875,1754874634679,-400.0,0.00018859,2]
[378460876,1754874634688,-400.0,0.00018859,2]
[378460877,1754874634700,-400.0,0.00018859,2]
[378460878,1754874634711,-434.97938091,0.00018859,2]
[378460879,1754874634720,-492.2,0.00018859,2]
[378460880,1754874634995,-400.0,0.00018859,2]
[378460881,1754874635012,-400.0,0.00018859,2]
[378460882,1754874635023,-577.3,0.00018859,2]
[378460883,1754874635033,-663.02,0.00018859,2]
[378460884,1754874635043,-513.0,0.00018859,2]
[378460885,1754874635053,-400.0,0.00018859,2]
[378460886,1754874635064,-300.0,0.00018859,2]
[378460887,1754874635074,-400.0,0.00018859,2]
[378460888,1754874635084,-400.0,0.00018859,2]
[378460889,1754874635095,-1033.06,0.00018859,2]
[378460890,1754874635105,-400.0,0.00018859,2]
[378460891,1754874635115,-554.42,0.00018859,2]
[378460892,1754874635125,-667.27,0.00018859,2]
[378460893,1754874635135,-679.68,0.00018859,2]
[378460894,1754874635144,-494.39,0.00018859,2]
[378460895,1754874635154,-602.99,0.00018859,2]
[378460896,1754874635164,-400.0,0.00018859,2]
[378460897,1754874635174,-400.0,0.00018859,2]
[378460898,1754874635183,-400.0,0.00018859,2]
[378460899,1754874635193,-401.51,0.00018859,2]
[378460900,1754874635202,-404.9,0.00018859,2]
[378460901,1754874635212,-400.0,0.00018859,2]
[378460902,1754874635222,-400.0,0.00018859,2]
[378460903,1754874635232,-400.0,0.00018859,2]
[378460904,1754874635242,-1475.81,0.00018859,2]
[378460905,1754874635252,-981.39,0.00018859,2]
[378460906,1754874635263,-400.0,0.00018859,2]
[378460907,1754874635272,-400.0,0.00018859,2]
[378460908,1754874635282,-1345.95,0.00018859,2]
[378460909,1754874635292,-400.0,0.00018859,2]
[378460910,1754874635302,-529.42,0.00018859,2]
[378460911,1754874635311,-400.0,0.00018859,2]
[378460912,1754874635322,-400.0,0.00018859,2]
[378460913,1754874635332,-696.39,0.00018859,2]
[378460914,1754874635341,-829.93,0.00018859,2]
[378460915,1754874635351,-400.0,0.00018859,2]
[378460916,1754874635361,-400.0,0.00018859,2]
[378460917,1754874635371,-764.75,0.00018859,2]
[378460918,1754874635381,-400.0,0.00018859,2]
[378460919,1754874635391,-400.0,0.00018859,2]
[378460920,1754874635402,-1034.37,0.00018859,2]
[378460921,1754874635412,-709.76,0.00018859,2]
[378460922,1754874635421,-400.0,0.00018859,2]
[378460923,1754874635431,-400.0,0.00018859,2]
[378460924,1754874635441,-593.86,0.00018859,2]
[378460925,1754874635450,-400.0,0.00018859,2]
[378460926,1754874635460,-495.94,0.00018859,2]
[378460927,1754874635469,-400.0,0.00018859,2]
[378460928,1754874635479,-400.0,0.00018859,2]
[378460929,1754874635488,-561.34,0.00018859,2]
[378460930,1754874635498,-400.0,0.00018859,2]
[378460931,1754874635507,-400.0,0.00018859,2]
[378460932,1754874635517,-416.84,0.00018859,2]
[378460933,1754874635526,-572.03,0.00018859,2]
[378460934,1754874635535,-597.57,0.00018859,2]
[378460935,1754874635545,-400.0,0.00018859,2]
[378460936,1754874635555,-502.99,0.00018859,2]
[378460937,1754874635564,-400.0,0.00018859,2]
[378460938,1754874635574,-400.0,0.00018859,2]
[378460939,1754874635584,-400.0,0.00018859,2]
[378460940,1754874635593,-400.0,0.00018859,2]
[378460941,1754874635603,-400.0,0.00018859,2]
[378460942,1754874635614,-400.0,0.00018859,2]
[378460943,1754874635627,-427.84,0.00018859,2]
[378460944,1754874635639,-553.04,0.00018859,2]
[378460945,1754874635648,-732.03,0.00018859,2]
[378460946,1754874635658,-486.37,0.00018859,2]
[378460947,1754874635667,-400.0,0.00018859,2]
[378460948,1754874635677,-400.0,0.00018859,2]
[378460949,1754874635687,-400.0,0.00018859,2]
[378460950,1754874635696,-1189.74,0.00018859,2]
[378460951,1754874635706,-400.0,0.00018859,2]
[378460952,1754874635715,-400.0,0.00018859,2]
[378460953,1754874635725,-400.0,0.00018859,2]
[378460954,1754874635734,-400.0,0.00018859,2]
[378460955,1754874635743,-400.0,0.00018859,2]
[378460956,1754874635752,-614.04,0.00018859,2]
[378460957,1754874635762,-498.06,0.00018859,2]
[378460958,1754874635773,-490.45,0.00018859,2]
[378460959,1754874635782,-400.0,0.00018859,2]
[378460960,1754874635791,-400.0,0.00018859,2]
[378460961,1754874635800,-400.0,0.00018859,2]
[378460962,1754874635809,-466.9,0.00018859,2]
[378460963,1754874635818,-400.0,0.00018859,2]
[378460964,1754874635827,-557.21,0.00018859,2]
[378460965,1754874635836,-1228.8,0.00018859,2]
[378460966,1754874635846,-400.0,0.00018859,2]
[378460967,1754874635855,-784.99,0.00018859,2]
[378460968,1754874635864,-400.0,0.00018859,2]
[378460969,1754874635873,-400.0,0.00018859,2]
[378460970,1754874635882,-400.0,0.00018859,2]
[378460971,1754874635891,-1691.45,0.00018859,2]
[378460972,1754874635900,-508.56,0.00018859,2]
[378460973,1754874635910,-400.15,0.00018859,2]
[378460974,1754874635919,-400.0,0.00018859,2]
[378460975,1754874635928,-597.34,0.00018859,2]
[378460976,1754874635937,-424.20455158,0.00018859,2]
[378460977,1754874635946,-498.06,0.00018859,2]
[378460978,1754874635956,-400.0,0.00018859,2]
[378460979,1754874635966,-400.0,0.00018859,2]
[378460980,1754874635975,-952.4,0.00018859,2]
[378460981,1754874635984,-400.0,0.00018859,2]
[378460982,1754874635994,-400.0,0.00018859,2]
[378460983,1754874636003,-400.0,0.00018859,2]
[378460984,1754874636012,-712.53,0.00018859,2]
[378460985,1754874636021,-400.0,0.00018859,2]
[378460986,1754874636030,-400.0,0.00018859,2]
[378460987,1754874636039,-445.62,0.00018859,2]
[378460988,1754874636048,-533.25,0.00018859,2]
[378460989,1754874636058,-400.0,0.00018859,2]
[378460990,1754874636068,-1020.33,0.00018859,2]
[378460991,1754874636078,-400.0,0.00018859,2]
[378460992,1754874636087,-400.0,0.00018859,2]
[378460993,1754874636095,-543.76,0.00018859,2]
[378460994,1754874636104,-400.0,0.00018859,2]
[378460995,1754874636114,-400.0,0.00018859,2]
[378460996,1754874636123,-401.49,0.00018859,2]
[378460997,1754874636132,-400.0,0.00018859,2]
[378460998,1754874636141,-530.44,0.00018859,2]
[378460999,1754874636150,-400.0,0.00018859,2]
[378461000,1754874636159,-688.4,0.00018859,2]
[378461001,1754874636168,-400.0,0.00018859,2]
[378461002,1754874636177,-400.0,0.00018859,2]
[378461003,1754874636186,-400.0,0.00018859,2]
[378461004,1754874636195,-903.63,0.00018859,2]
[378461005,1754874636205,-400.0,0.00018859,2]
[378461006,1754874636214,-400.0,0.00018859,2]
[378461007,1754874636223,-400.0,0.00018859,2]
[378461008,1754874636233,-1133.47,0.00018859,2]
[378461009,1754874636242,-400.0,0.00018859,2]
[378461010,1754874636251,-400.0,0.00018859,2]
[378461011,1754874636261,-400.0,0.00018859,2]
[378461012,1754874636271,-400.0,0.00018859,2]
[378461013,1754874636279,-1676.46,0.00018859,2]
[378461014,1754874636289,-400.0,0.00018859,2]
[378461015,1754874636298,-400.0,0.00018859,2]
[378461016,1754874636307,-1281.34,0.00018859,2]
[378461017,1754874636317,-605.0,0.00018859,2]
[378461018,1754874636326,-1452.07,0.00018859,2]
[378461019,1754874636335,-400.0,0.00018859,2]
[378461020,1754874636344,-400.0,0.00018859,2]
[378461021,1754874636354,-400.0,0.00018859,2]